[Event "*** Titled Tuesday 3|2 Blitz (Early)"]
[Site "Chess.com"]
[Date "2016.11.01"]
[Round "5"]
[White "HovmoellerHest"]
[Black "KestutisLabeckas"]
[Result "1-0"]
[WhiteElo "2297"]
[BlackElo "2463"]
[TimeControl "180+2"]
[EndTime "12:05:59 PDT"]
[Termination "HovmoellerHest won by resignation"]

1. d4 {[%clk 0:03:01.9]} 1... d6 {[%clk 0:02:58.9]} 2. Nf3 {[%clk 0:03:01.9]}
2... Nf6 {[%clk 0:02:59.9]} 3. c4 {[%clk 0:03:02.5]} 3... Bg4 {[%clk 0:03:00.7]}
4. g3 {[%clk 0:02:59.1]} 4... Bxf3 {[%clk 0:03:01.2]} 5. exf3 {[%clk 0:03:00.1]}
5... c6 {[%clk 0:03:03.1]} 6. f4 {[%clk 0:02:58.6]} 6... g6 {[%clk 0:03:03.3]}
7. Nc3 {[%clk 0:02:59.1]} 7... Bg7 {[%clk 0:03:04.2]} 8. Bg2 {[%clk 0:03:00.3]}
8... O-O {[%clk 0:03:04.6]} 9. O-O {[%clk 0:03:01.3]} 9... Nbd7 {[%clk
0:03:03.9]} 10. Qd3 {[%clk 0:02:57.4]} 10... e6 {[%clk 0:03:03.1]} 11. b3 {[%clk
0:02:51]} 11... d5 {[%clk 0:03:03.2]} 12. Ba3 {[%clk 0:02:45.8]} 12... Re8
{[%clk 0:03:04.1]} 13. Bd6 {[%clk 0:02:45.9]} 13... a6 {[%clk 0:02:46.7]} 14. c5
{[%clk 0:02:43.2]} 14... Bf8 {[%clk 0:02:39.4]} 15. Bxf8 {[%clk 0:02:39.1]}
15... Rxf8 {[%clk 0:02:41.3]} 16. h3 {[%clk 0:02:39.3]} 16... a5 {[%clk
0:02:32.9]} 17. Na4 {[%clk 0:02:31]} 17... h5 {[%clk 0:02:25.4]} 18. Bf3 {[%clk
0:02:29.4]} 18... Kg7 {[%clk 0:02:26.2]} 19. Kg2 {[%clk 0:02:30.1]} 19... Rh8
{[%clk 0:02:26.8]} 20. Rfe1 {[%clk 0:02:30.2]} 20... Ng8 {[%clk 0:02:25]} 21.
Nb2 {[%clk 0:02:13.4]} 21... Ne7 {[%clk 0:02:24]} 22. Qc3 {[%clk 0:02:11.8]}
22... Nf5 {[%clk 0:02:21.6]} 23. Nd3 {[%clk 0:02:10.3]} 23... b5 {[%clk
0:01:53.2]} 24. cxb6 {[%clk 0:02:05.7]} 24... Qxb6 {[%clk 0:01:53.9]} 25. Nc5
{[%clk 0:02:05.9]} 25... Nf6 {[%clk 0:01:37.8]} 26. Rac1 {[%clk 0:02:03]} 26...
Rhc8 {[%clk 0:01:31.7]} 27. Red1 {[%clk 0:02:01.3]} 27... Nd6 {[%clk 0:01:32.1]}
28. Qe3 {[%clk 0:01:55.4]} 28... Nb7 {[%clk 0:01:21.5]} 29. Qe5 {[%clk
0:01:48.7]} 29... Nxc5 {[%clk 0:01:17.8]} 30. Rxc5 {[%clk 0:01:47.5]} 30... Qc7
{[%clk 0:01:04]} 31. Rdc1 {[%clk 0:01:42.3]} 31... Ra6 {[%clk 0:01:04.1]} 32.
Be2 {[%clk 0:01:38.6]} 32... Rb6 {[%clk 0:00:55.8]} 33. g4 {[%clk 0:01:15.5]}
33... hxg4 {[%clk 0:00:53.1]} 34. hxg4 {[%clk 0:01:16.1]} 34... Qxe5 {[%clk
0:00:48]} 35. fxe5 {[%clk 0:01:15.5]} 35... Ne4 {[%clk 0:00:42.9]} 36. Rxa5
{[%clk 0:01:16.1]} 36... Rb4 {[%clk 0:00:43.9]} 37. f3 {[%clk 0:01:07.2]} 37...
Ng5 {[%clk 0:00:28.7]} 38. Ra4 {[%clk 0:00:59]} 38... Rxa4 {[%clk 0:00:27.2]}
39. bxa4 {[%clk 0:01:00.9]} 39... Ra8 {[%clk 0:00:28.1]} 40. Bd1 {[%clk
0:00:53.5]} 40... Ra6 {[%clk 0:00:26.6]} 41. Rc5 {[%clk 0:00:46.7]} 41... Kf8
{[%clk 0:00:25.4]} 42. a5 {[%clk 0:00:46.5]} 42... Ke7 {[%clk 0:00:25]} 43. Be2
{[%clk 0:00:47.5]} 43... Ra7 {[%clk 0:00:23]} 44. a6 {[%clk 0:00:41.8]} 44...
Kd7 {[%clk 0:00:23.3]} 45. Rc1 {[%clk 0:00:41.9]} 45... Nh7 {[%clk 0:00:21]} 46.
Rb1 {[%clk 0:00:23.5]} 46... Nf8 {[%clk 0:00:21.2]} 47. f4 {[%clk 0:00:22.3]}
47... Kc7 {[%clk 0:00:21.5]} 48. Kg3 {[%clk 0:00:21.2]} 48... Nd7 {[%clk
0:00:21.6]} 49. Kh4 {[%clk 0:00:21.4]} 49... f6 {[%clk 0:00:22.9]} 50. exf6
{[%clk 0:00:20]} 50... Nxf6 {[%clk 0:00:24.8]} 51. Kg5 {[%clk 0:00:21.3]} 51...
Ne4+ {[%clk 0:00:25.9]} 52. Kxg6 {[%clk 0:00:21.6]} 52... Nc3 {[%clk 0:00:27.8]}
53. Rb2 {[%clk 0:00:22.6]} 53... Nxe2 {[%clk 0:00:27.9]} 54. Rxe2 {[%clk
0:00:23.8]} 54... Rxa6 {[%clk 0:00:26.9]} 55. Kf6 {[%clk 0:00:24.8]} 55... Kd7
{[%clk 0:00:25.1]} 56. g5 {[%clk 0:00:25.2]} 56... Ra8 {[%clk 0:00:22.3]} 57.
Rxe6 {[%clk 0:00:23.3]} 57... Rf8+ {[%clk 0:00:23]} 58. Ke5 {[%clk 0:00:24.6]}
58... Rxf4 {[%clk 0:00:20.2]} 59. Kxf4 {[%clk 0:00:21.6]} 59... Kxe6 {[%clk
0:00:22.1]} 60. a4 {[%clk 0:00:22.2]} 1-0

[Event "*** Titled Tuesday 3|2 Blitz (Early)"]
[Site "Chess.com"]
[Date "2016.11.01"]
[Round "5"]
[White "Drags95"]
[Black "DanielNaroditsky"]
[Result "0-1"]
[WhiteElo "2445"]
[BlackElo "2742"]
[TimeControl "180+2"]
[EndTime "12:06:38 PDT"]
[Termination "DanielNaroditsky won by resignation"]

1. d4 {[%clk 0:03:01.9]} 1... Nf6 {[%clk 0:03:00.2]} 2. c4 {[%clk 0:03:02.7]}
2... e6 {[%clk 0:03:01.3]} 3. Nf3 {[%clk 0:03:03.5]} 3... d5 {[%clk 0:03:01.6]}
4. Nc3 {[%clk 0:03:04.8]} 4... Bb4 {[%clk 0:03:02]} 5. Qb3 {[%clk 0:03:04]} 5...
c5 {[%clk 0:03:01]} 6. dxc5 {[%clk 0:02:57.7]} 6... Na6 {[%clk 0:03:02.1]} 7. a3
{[%clk 0:02:48.1]} 7... Bxc3+ {[%clk 0:03:02.5]} 8. Qxc3 {[%clk 0:02:50]} 8...
Nxc5 {[%clk 0:03:04]} 9. cxd5 {[%clk 0:02:51.6]} 9... Qxd5 {[%clk 0:03:04.5]}
10. Be3 {[%clk 0:02:52.9]} 10... Nce4 {[%clk 0:03:01.9]} 11. Qe5 {[%clk
0:02:44.1]} 11... Qxe5 {[%clk 0:03:02.2]} 12. Nxe5 {[%clk 0:02:44.7]} 12... Nd5
{[%clk 0:03:04.1]} 13. Bc1 {[%clk 0:02:33.2]} 13... Nc5 {[%clk 0:02:59.2]} 14.
Rb1 {[%clk 0:02:16.4]} 14... f6 {[%clk 0:02:40.4]} 15. Nc4 {[%clk 0:02:17.5]}
15... e5 {[%clk 0:02:30.7]} 16. f3 {[%clk 0:02:16.6]} 16... Be6 {[%clk
0:02:05.9]} 17. e4 {[%clk 0:02:13.3]} 17... Nb6 {[%clk 0:02:07]} 18. Nxb6 {[%clk
0:01:25.6]} 18... axb6 {[%clk 0:02:08.9]} 19. Be3 {[%clk 0:01:26.8]} 19... Ke7
{[%clk 0:02:05.9]} 20. Be2 {[%clk 0:01:27.7]} 20... Rhd8 {[%clk 0:01:58]} 21.
Kf2 {[%clk 0:01:28.5]} 21... Rac8 {[%clk 0:01:40.7]} 22. Rhd1 {[%clk 0:01:27.3]}
22... Rxd1 {[%clk 0:01:33.9]} 23. Rxd1 {[%clk 0:01:29.2]} 23... Na4 {[%clk
0:01:34.6]} 24. Rd2 {[%clk 0:01:19.4]} 24... Nc5 {[%clk 0:01:35.5]} 25. b4
{[%clk 0:01:16.6]} 25... Nb3 {[%clk 0:01:33.1]} 26. Rb2 {[%clk 0:01:17]} 26...
Nd4 {[%clk 0:01:27.2]} 27. Bxd4 {[%clk 0:01:18.1]} 27... exd4 {[%clk 0:01:29]}
28. Rd2 {[%clk 0:01:19.8]} 28... Rc3 {[%clk 0:01:30.5]} 29. a4 {[%clk
0:01:14.3]} 29... Ra3 {[%clk 0:01:30.6]} 30. Bb5 {[%clk 0:01:12.8]} 30... Ra2
{[%clk 0:01:05.5]} 31. Ke2 {[%clk 0:00:58.4]} 31... Kd6 {[%clk 0:01:04.2]} 32.
f4 {[%clk 0:00:50.3]} 32... g5 {[%clk 0:00:54.1]} 33. g3 {[%clk 0:00:45.5]}
33... Ra3 {[%clk 0:00:45.7]} 34. Rxd4+ {[%clk 0:00:45.5]} 34... Ke7 {[%clk
0:00:47.1]} 35. Rd3 {[%clk 0:00:46.1]} 35... Ra2+ {[%clk 0:00:46.2]} 36. Rd2
{[%clk 0:00:47.4]} 36... Ra3 {[%clk 0:00:47.1]} 37. f5 {[%clk 0:00:47.3]} 37...
Bc8 {[%clk 0:00:46.7]} 38. Rc2 {[%clk 0:00:45.6]} 38... Kd8 {[%clk 0:00:47]} 39.
Kf2 {[%clk 0:00:35.3]} 39... Rb3 {[%clk 0:00:46.1]} 40. Rd2+ {[%clk 0:00:26.6]}
40... Ke7 {[%clk 0:00:46.2]} 41. Rc2 {[%clk 0:00:28.2]} 41... Kd8 {[%clk
0:00:47.5]} 42. Rc4 {[%clk 0:00:29.8]} 42... Rb2+ {[%clk 0:00:47.9]} 43. Kf3
{[%clk 0:00:31]} 43... Rxh2 {[%clk 0:00:45.8]} 44. Rd4+ {[%clk 0:00:25.1]} 44...
Ke7 {[%clk 0:00:47.1]} 45. Rc4 {[%clk 0:00:26.4]} 45... Kd8 {[%clk 0:00:47.5]}
46. g4 {[%clk 0:00:15.2]} 46... h5 {[%clk 0:00:42.8]} 47. gxh5 {[%clk
0:00:14.2]} 47... Rxh5 {[%clk 0:00:44.7]} 48. Rd4+ {[%clk 0:00:15.1]} 48... Kc7
{[%clk 0:00:44.9]} 49. Rc4+ {[%clk 0:00:16]} 49... Kb8 {[%clk 0:00:44.5]} 50.
Rd4 {[%clk 0:00:17.5]} 50... Rh3+ {[%clk 0:00:33.1]} 51. Kg2 {[%clk 0:00:17.3]}
51... Rh4 {[%clk 0:00:33.5]} 52. Rd6 {[%clk 0:00:14]} 52... Rxe4 {[%clk
0:00:30.9]} 53. Rxf6 {[%clk 0:00:15.1]} 53... Rxb4 {[%clk 0:00:23.2]} 54. Rf8
{[%clk 0:00:16.2]} 54... Kc7 {[%clk 0:00:23.6]} 55. f6 {[%clk 0:00:16.9]} 55...
Rf4 {[%clk 0:00:25.2]} 56. Kg3 {[%clk 0:00:15.4]} 56... Be6 {[%clk 0:00:25.1]}
57. Kg2 {[%clk 0:00:10.2]} 57... Kd6 {[%clk 0:00:22.6]} 58. Kg3 {[%clk
0:00:11.6]} 58... Ke5 {[%clk 0:00:23.6]} 59. Rb8 {[%clk 0:00:11]} 59... Bd5
{[%clk 0:00:23.3]} 60. Re8+ {[%clk 0:00:06.2]} 60... Kd4 {[%clk 0:00:24.7]} 61.
Rf8 {[%clk 0:00:05.7]} 61... Ke5 {[%clk 0:00:25.8]} 62. Re8+ {[%clk 0:00:07.1]}
62... Kxf6 {[%clk 0:00:26.3]} 63. Rd8 {[%clk 0:00:08.2]} 63... Ke5 {[%clk
0:00:27.1]} 64. Re8+ {[%clk 0:00:09.8]} 64... Kd4 {[%clk 0:00:28]} 65. Rd8
{[%clk 0:00:10.8]} 65... Kc5 {[%clk 0:00:28.7]} 66. Rc8+ {[%clk 0:00:11.7]}
66... Bc6 {[%clk 0:00:29.4]} 67. Rg8 {[%clk 0:00:06.2]} 67... Rf5 {[%clk
0:00:24.9]} 68. Bd3 {[%clk 0:00:07.1]} 68... Rf3+ {[%clk 0:00:25.4]} 0-1

[Event "*** Titled Tuesday 3|2 Blitz (Early)"]
[Site "Chess.com"]
[Date "2016.11.01"]
[Round "5"]
[White "LuckyTiger"]
[Black "Gabrielian_Artur"]
[Result "0-1"]
[WhiteElo "2579"]
[BlackElo "2565"]
[TimeControl "180+2"]
[EndTime "12:06:38 PDT"]
[Termination "Gabrielian_Artur won by resignation"]

1. e4 {[%clk 0:03:02]} 1... c5 {[%clk 0:02:59.3]} 2. c3 {[%clk 0:03:03.3]} 2...
Nf6 {[%clk 0:02:59.4]} 3. e5 {[%clk 0:03:04.6]} 3... Nd5 {[%clk 0:02:59.4]} 4.
Nf3 {[%clk 0:03:06.2]} 4... d6 {[%clk 0:03:00]} 5. d4 {[%clk 0:03:03.9]} 5...
cxd4 {[%clk 0:03:00.5]} 6. Bb5+ {[%clk 0:03:03.3]} 6... Nc6 {[%clk 0:02:56.6]}
7. Qxd4 {[%clk 0:02:03.9]} 7... e6 {[%clk 0:02:49.8]} 8. exd6 {[%clk 0:01:55.5]}
8... Qxd6 {[%clk 0:02:35.8]} 9. O-O {[%clk 0:01:56.9]} 9... Bd7 {[%clk
0:02:34.3]} 10. Qg4 {[%clk 0:01:57.4]} 10... Nf6 {[%clk 0:02:26.1]} 11. Qa4
{[%clk 0:01:33.5]} 11... a6 {[%clk 0:02:20]} 12. Bf4 {[%clk 0:01:26.2]} 12...
Qc5 {[%clk 0:02:10.1]} 13. Nd4 {[%clk 0:01:18.3]} 13... Nd5 {[%clk 0:01:54.4]}
14. Bxc6 {[%clk 0:01:13.4]} 14... bxc6 {[%clk 0:01:40.1]} 15. Bg3 {[%clk
0:01:14.3]} 15... Be7 {[%clk 0:01:38.8]} 16. Nd2 {[%clk 0:01:12.5]} 16... O-O
{[%clk 0:01:30.7]} 17. N4b3 {[%clk 0:01:13.5]} 17... Qa7 {[%clk 0:01:20]} 18.
Na5 {[%clk 0:01:14.5]} 18... Rac8 {[%clk 0:01:17.2]} 19. Rfe1 {[%clk 0:01:13.2]}
19... Rfe8 {[%clk 0:01:14]} 20. Ndc4 {[%clk 0:01:12.3]} 20... c5 {[%clk
0:01:14.4]} 21. Qc2 {[%clk 0:01:12.8]} 21... Bf8 {[%clk 0:01:06.6]} 22. a4
{[%clk 0:01:13.1]} 22... f6 {[%clk 0:01:07.8]} 23. Bd6 {[%clk 0:01:13.3]} 23...
Rcd8 {[%clk 0:01:00.8]} 24. Bxf8 {[%clk 0:01:13.7]} 24... Rxf8 {[%clk
0:01:01.4]} 25. Rad1 {[%clk 0:01:11.2]} 25... Qc7 {[%clk 0:01:02.3]} 26. Ra1
{[%clk 0:00:59.5]} 26... Rfe8 {[%clk 0:01:02.6]} 27. Nb3 {[%clk 0:00:57.4]}
27... e5 {[%clk 0:01:03.7]} 28. Red1 {[%clk 0:00:56.7]} 28... Nf4 {[%clk
0:01:03.3]} 29. Ne3 {[%clk 0:00:36.9]} 29... c4 {[%clk 0:01:04.3]} 30. Nd2
{[%clk 0:00:37.3]} 30... Be6 {[%clk 0:01:03.2]} 31. a5 {[%clk 0:00:25.3]} 31...
h5 {[%clk 0:00:54.8]} 32. Nf3 {[%clk 0:00:17]} 32... Nd3 {[%clk 0:00:53.9]} 33.
Ne1 {[%clk 0:00:14.2]} 33... e4 {[%clk 0:00:54.9]} 34. Nxd3 {[%clk 0:00:13.4]}
34... exd3 {[%clk 0:00:50.7]} 35. Qd2 {[%clk 0:00:14]} 35... Bf7 {[%clk
0:00:51.3]} 36. Re1 {[%clk 0:00:14.5]} 36... g6 {[%clk 0:00:51.9]} 37. h3 {[%clk
0:00:14.1]} 37... Kg7 {[%clk 0:00:53]} 38. Nf1 {[%clk 0:00:14.7]} 38... Rxe1
{[%clk 0:00:52.4]} 39. Qxe1 {[%clk 0:00:16]} 39... Rb8 {[%clk 0:00:52.7]} 40.
Qc1 {[%clk 0:00:16]} 40... Rb5 {[%clk 0:00:43.3]} 41. Nd2 {[%clk 0:00:13.6]}
41... Rxa5 {[%clk 0:00:42.5]} 42. Qe1 {[%clk 0:00:14.2]} 42... Qe5 {[%clk
0:00:41.1]} 43. Rb1 {[%clk 0:00:11]} 43... Qxe1+ {[%clk 0:00:25.7]} 44. Rxe1
{[%clk 0:00:12.9]} 44... Rb5 {[%clk 0:00:26.9]} 45. Rb1 {[%clk 0:00:13.1]} 45...
g5 {[%clk 0:00:26.5]} 46. Kf1 {[%clk 0:00:10.5]} 46... f5 {[%clk 0:00:27.7]} 47.
g3 {[%clk 0:00:10.8]} 47... Kf6 {[%clk 0:00:28.5]} 48. Ke1 {[%clk 0:00:11]}
48... h4 {[%clk 0:00:27.8]} 49. gxh4 {[%clk 0:00:11.8]} 49... gxh4 {[%clk
0:00:28.7]} 50. Nf3 {[%clk 0:00:12.9]} 50... a5 {[%clk 0:00:28.9]} 51. Kd2
{[%clk 0:00:13.9]} 51... a4 {[%clk 0:00:27]} 52. Nd4 {[%clk 0:00:14.2]} 52...
Rb6 {[%clk 0:00:23.5]} 53. Kc1 {[%clk 0:00:15.4]} 53... f4 {[%clk 0:00:23.3]}
54. Ra1 {[%clk 0:00:16.6]} 54... Ra6 {[%clk 0:00:22.7]} 55. Kd2 {[%clk
0:00:17.8]} 55... Be6 {[%clk 0:00:22.2]} 56. Nf3 {[%clk 0:00:16]} 56... Bd5
{[%clk 0:00:18.8]} 57. Nd4 {[%clk 0:00:12.1]} 57... Bg2 {[%clk 0:00:19.8]} 58.
Rg1 {[%clk 0:00:12]} 58... f3 {[%clk 0:00:19.5]} 59. Re1 {[%clk 0:00:10.5]}
59... Rb6 {[%clk 0:00:18.5]} 60. Kc1 {[%clk 0:00:09.7]} 60... d2+ {[%clk
0:00:19.8]} 61. Kxd2 {[%clk 0:00:11.1]} 61... Rxb2+ {[%clk 0:00:21]} 62. Ke3
{[%clk 0:00:12.4]} 62... a3 {[%clk 0:00:21.4]} 63. Kf4 {[%clk 0:00:13.8]} 63...
Bxh3 {[%clk 0:00:20.1]} 64. Re6+ {[%clk 0:00:15.1]} 64... Bxe6 {[%clk
0:00:20.5]} 0-1

[Event "*** Titled Tuesday 3|2 Blitz (Early)"]
[Site "Chess.com"]
[Date "2016.11.01"]
[Round "5"]
[White "GianmarcoVaR"]
[Black "RodinMihail"]
[Result "1/2-1/2"]
[WhiteElo "2420"]
[BlackElo "2438"]
[TimeControl "180+2"]
[EndTime "12:06:55 PDT"]
[Termination "Game drawn by repetition"]

1. d4 {[%clk 0:03:01.9]} 1... d5 {[%clk 0:03:00.8]} 2. Nf3 {[%clk 0:03:02.8]}
2... Nf6 {[%clk 0:03:01.5]} 3. c4 {[%clk 0:03:04]} 3... e6 {[%clk 0:03:02.8]} 4.
g3 {[%clk 0:03:02.3]} 4... c6 {[%clk 0:03:03.7]} 5. Bg2 {[%clk 0:03:03.1]} 5...
Nbd7 {[%clk 0:03:05.3]} 6. Nc3 {[%clk 0:03:00.6]} 6... Bd6 {[%clk 0:03:05.8]} 7.
O-O {[%clk 0:03:00.5]} 7... dxc4 {[%clk 0:03:06.5]} 8. a4 {[%clk 0:02:56.5]}
8... a5 {[%clk 0:03:07]} 9. Bg5 {[%clk 0:02:52.1]} 9... h6 {[%clk 0:02:53.8]}
10. Bxf6 {[%clk 0:02:52.9]} 10... Nxf6 {[%clk 0:02:54.9]} 11. e4 {[%clk
0:02:54]} 11... Bb4 {[%clk 0:02:54.3]} 12. Qe2 {[%clk 0:02:54.8]} 12... O-O
{[%clk 0:02:49.9]} 13. e5 {[%clk 0:02:48.8]} 13... Nd5 {[%clk 0:02:42.9]} 14.
Qxc4 {[%clk 0:02:49.4]} 14... Bxc3 {[%clk 0:02:30.4]} 15. bxc3 {[%clk
0:02:49.9]} 15... b5 {[%clk 0:02:28.4]} 16. Qc5 {[%clk 0:02:10.7]} 16... b4
{[%clk 0:02:22.9]} 17. cxb4 {[%clk 0:02:11.2]} 17... Nxb4 {[%clk 0:02:22]} 18.
Nd2 {[%clk 0:01:48]} 18... Ba6 {[%clk 0:02:17.2]} 19. Nc4 {[%clk 0:01:39.9]}
19... Nd3 {[%clk 0:02:01.2]} 20. Qxc6 {[%clk 0:01:29.5]} 20... Qxd4 {[%clk
0:02:02.2]} 21. Qd6 {[%clk 0:00:48.8]} 21... Qxc4 {[%clk 0:01:54.7]} 22. Bxa8
{[%clk 0:00:49.8]} 22... Rxa8 {[%clk 0:01:56.6]} 23. Rab1 {[%clk 0:00:45.8]}
23... Qxa4 {[%clk 0:01:35.1]} 24. Rb6 {[%clk 0:00:42]} 24... Qc4 {[%clk
0:01:26.8]} 25. Rc6 {[%clk 0:00:42.9]} 25... Qd5 {[%clk 0:01:05.9]} 26. Rxa6
{[%clk 0:00:39.5]} 26... Rxa6 {[%clk 0:01:07.8]} 27. Qxa6 {[%clk 0:00:39.6]}
27... Nxe5 {[%clk 0:01:08]} 28. Qc8+ {[%clk 0:00:30.1]} 28... Kh7 {[%clk
0:01:08.8]} 29. Qc2+ {[%clk 0:00:30.1]} 29... g6 {[%clk 0:01:10]} 30. Rd1 {[%clk
0:00:29.9]} 30... Nf3+ {[%clk 0:01:04.2]} 31. Kf1 {[%clk 0:00:29.4]} 31... Nxh2+
{[%clk 0:01:04.6]} 32. Kg1 {[%clk 0:00:30.9]} 32... Nf3+ {[%clk 0:01:05.6]} 33.
Kf1 {[%clk 0:00:32.2]} 33... Qh5 {[%clk 0:01:05.8]} 34. Kg2 {[%clk 0:00:29.9]}
34... Ng5 {[%clk 0:01:00.2]} 35. Qd3 {[%clk 0:00:25]} 35... a4 {[%clk
0:00:55.9]} 36. Rh1 {[%clk 0:00:24.4]} 36... Qg4 {[%clk 0:00:55.1]} 37. Rh4
{[%clk 0:00:25]} 37... Qf5 {[%clk 0:00:47.4]} 38. Qxf5 {[%clk 0:00:26]} 38...
gxf5 {[%clk 0:00:48.9]} 39. Rxa4 {[%clk 0:00:27.7]} 39... e5 {[%clk 0:00:50.2]}
40. Ra6 {[%clk 0:00:27.9]} 40... Kg7 {[%clk 0:00:47.7]} 41. f4 {[%clk
0:00:18.4]} 41... exf4 {[%clk 0:00:48.4]} 42. gxf4 {[%clk 0:00:19.7]} 42... Ne6
{[%clk 0:00:49.5]} 43. Kg3 {[%clk 0:00:19.7]} 43... Kg6 {[%clk 0:00:49.1]} 44.
Rb6 {[%clk 0:00:19.6]} 44... h5 {[%clk 0:00:49.7]} 45. Ra6 {[%clk 0:00:19.5]}
45... Kh6 {[%clk 0:00:50.3]} 46. Rb6 {[%clk 0:00:19.6]} 46... Kg6 {[%clk
0:00:51.6]} 47. Rb5 {[%clk 0:00:18.8]} 47... Kf6 {[%clk 0:00:52.2]} 48. Rb8
{[%clk 0:00:17.7]} 48... Ng7 {[%clk 0:00:48.9]} 49. Rh8 {[%clk 0:00:15.2]} 49...
Kg6 {[%clk 0:00:49.3]} 50. Kh4 {[%clk 0:00:15.3]} 50... Ne6 {[%clk 0:00:48.4]}
51. Rg8+ {[%clk 0:00:15.1]} 51... Ng7 {[%clk 0:00:48.5]} 52. Ra8 {[%clk
0:00:10.6]} 52... Ne6 {[%clk 0:00:48.5]} 53. Rg8+ {[%clk 0:00:10.6]} 53... Ng7
{[%clk 0:00:48.9]} 54. Rh8 {[%clk 0:00:11.1]} 54... Ne6 {[%clk 0:00:49.2]} 55.
Rxh5 {[%clk 0:00:10.5]} 55... Nxf4 {[%clk 0:00:49.7]} 56. Rh8 {[%clk 0:00:10.9]}
56... Kf6 {[%clk 0:00:49.5]} 57. Kg3 {[%clk 0:00:11.2]} 57... Ng6 {[%clk
0:00:50.2]} 58. Ra8 {[%clk 0:00:12]} 58... Kg5 {[%clk 0:00:51.3]} 59. Ra5 {[%clk
0:00:12.1]} 59... f6 {[%clk 0:00:51]} 60. Rb5 {[%clk 0:00:12.6]} 60... Ne5
{[%clk 0:00:52.1]} 61. Rb4 {[%clk 0:00:09.8]} 61... Nd3 {[%clk 0:00:52.3]} 62.
Rd4 {[%clk 0:00:09.5]} 62... f4+ {[%clk 0:00:51.1]} 63. Kf3 {[%clk 0:00:07.2]}
63... Ne5+ {[%clk 0:00:51.9]} 64. Kf2 {[%clk 0:00:05.3]} 64... Kg4 {[%clk
0:00:51.7]} 65. Rd8 {[%clk 0:00:06]} 65... Kf5 {[%clk 0:00:47.9]} 66. Ra8 {[%clk
0:00:06.7]} 66... Kg4 {[%clk 0:00:45.7]} 67. Rg8+ {[%clk 0:00:07.2]} 67... Kf5
{[%clk 0:00:47]} 68. Ra8 {[%clk 0:00:08.3]} 68... Nd3+ {[%clk 0:00:48.1]} 69.
Kf3 {[%clk 0:00:09]} 69... Ne5+ {[%clk 0:00:49.2]} 70. Kf2 {[%clk 0:00:10.5]}
70... Ke4 {[%clk 0:00:50.4]} 71. Ra4+ {[%clk 0:00:11.4]} 71... Kf5 {[%clk
0:00:50.4]} 72. Ra8 {[%clk 0:00:12.9]} 72... Ng4+ {[%clk 0:00:50.8]} 73. Kf3
{[%clk 0:00:13.5]} 73... Ne5+ {[%clk 0:00:52.1]} 74. Kf2 {[%clk 0:00:14.9]}
1/2-1/2